fUST/lending_fUST_20260527
["ID","MTS","AMOUNT","RATE_DAILY","PERIOD"]
[423100706,1779849047000,-501.69032336,8.598e-05,2]
[423100736,1779849299000,165.754002,3.705e-05,2]
[423100746,1779849309000,152.0,0.00014957,30]
[423101325,1779850241000,-500.0,8.389e-05,2]
[423101319,1779850241000,-500.0,8.389e-05,2]
[423101317,1779850241000,-500.0,8.389e-05,2]
[423101321,1779850241000,-500.0,8.389e-05,2]
[423101323,1779850241000,-500.0,8.389e-05,2]
[423101327,1779850241000,-500.0,8.389e-05,2]
[423101341,1779850241000,-500.0,8.389e-05,2]
[423101329,1779850241000,-570.8847212,8.389e-05,2]
[423101331,1779850241000,-500.0,8.389e-05,2]
[423101335,1779850241000,-500.0,8.389e-05,2]
[423101337,1779850241000,-500.0,8.389e-05,2]
[423101343,1779850241000,-500.0,8.389e-05,2]
[423101315,1779850241000,-500.0,8.389e-05,2]
[423101339,1779850241000,-500.0,8.389e-05,2]
[423101333,1779850241000,-500.0,8.389e-05,2]
[423101299,1779850241000,-500.0,8.389e-05,2]
[423101345,1779850241000,-500.0,8.389e-05,2]
[423101311,1779850241000,-500.0,8.389e-05,2]
[423101281,1779850241000,-169.3718442,7.432e-05,2]
[423101283,1779850241000,-363.71737841,7.965e-05,2]
[423101285,1779850241000,-456.7502812,8.327e-05,2]
[423101279,1779850241000,-5000.0,7.358e-05,2]
[423101289,1779850241000,-160.0,8.347e-05,2]
[423101287,1779850241000,-326.0126879,8.346e-05,2]
[423101291,1779850241000,-160.0,8.347e-05,2]
[423101301,1779850241000,-500.0,8.389e-05,2]
[423101303,1779850241000,-500.0,8.389e-05,2]
[423101307,1779850241000,-500.0,8.389e-05,2]
[423101305,1779850241000,-539.94725604,8.389e-05,2]
[423101295,1779850241000,-500.0,8.389e-05,2]
[423101309,1779850241000,-500.0,8.389e-05,2]
[423101293,1779850241000,-274.56594937,8.389e-05,2]
[423101313,1779850241000,-500.0,8.389e-05,2]
[423101297,1779850241000,-500.0,8.389e-05,2]
[423101357,1779850241000,-500.0,8.389e-05,2]
[423101397,1779850241000,-500.0,8.39e-05,2]
[423101359,1779850241000,-500.0,8.389e-05,2]
[423101392,1779850241000,-500.0,8.389e-05,2]
[423101405,1779850241000,-500.0,8.392e-05,2]
[423101407,1779850241000,-500.0,8.392e-05,2]
[423101409,1779850241000,-505.6268223,8.392e-05,2]
[423101399,1779850241000,-500.0,8.39e-05,2]
[423101401,1779850241000,-500.0,8.392e-05,2]
[423101411,1779850241000,-547.21,8.392e-05,2]
[423101408,1779850241000,-501.51591541,8.392e-05,2]
[423101413,1779850241000,-287.97947139,8.392e-05,2]
[423101419,1779850241000,-306.08796031,8.392e-05,2]
[423101417,1779850241000,-501.75188743,8.392e-05,2]
[423101424,1779850241000,-303.69117116,8.392e-05,2]
[423101415,1779850241000,-500.0,8.392e-05,2]
[423101422,1779850241000,-196.30882884,8.392e-05,2]
[423101346,1779850241000,-500.0,8.389e-05,2]
[423101403,1779850241000,-500.0,8.392e-05,2]
[423101394,1779850241000,-500.0,8.389e-05,2]
[423101410,1779850241000,-284.21354698,8.392e-05,2]
[423101379,1779850241000,-500.0,8.389e-05,2]
[423101373,1779850241000,-500.0,8.389e-05,2]
[423101363,1779850241000,-500.0,8.389e-05,2]
[423101349,1779850241000,-500.0,8.389e-05,2]
[423101365,1779850241000,-500.0,8.389e-05,2]
[423101354,1779850241000,-500.0,8.389e-05,2]
[423101351,1779850241000,-500.0,8.389e-05,2]
[423101361,1779850241000,-500.0,8.389e-05,2]
[423101352,1779850241000,-500.0,8.389e-05,2]
[423101371,1779850241000,-500.0,8.389e-05,2]
[423101369,1779850241000,-500.0,8.389e-05,2]
[423101377,1779850241000,-500.0,8.389e-05,2]
[423101375,1779850241000,-500.0,8.389e-05,2]
[423101386,1779850241000,-500.0,8.389e-05,2]
[423101390,1779850241000,-487.89017704,8.389e-05,2]
[423101388,1779850241000,-500.0,8.389e-05,2]
[423101367,1779850241000,-500.0,8.389e-05,2]
[423101919,1779850245000,-501.58638138,8.392e-05,2]
[423101909,1779850245000,-501.18139375,8.392e-05,2]
[423101905,1779850245000,-500.0,8.389e-05,2]
[423101907,1779850245000,-197.54535356,8.392e-05,2]
[423101914,1779850245000,-349.4857318,8.392e-05,2]
[423101912,1779850245000,-501.379436,8.392e-05,2]
[423101916,1779850245000,-503.24361288,8.392e-05,2]
[423101917,1779850245000,-500.0,8.392e-05,2]
[423101935,1779850245000,-500.0,8.395e-05,2]
[423101927,1779850245000,-500.0,8.394e-05,2]
[423101929,1779850245000,-500.82711606,8.395e-05,2]
[423101931,1779850245000,-500.0,8.395e-05,2]
[423101925,1779850245000,-182.6926531,8.393e-05,2]
[423101921,1779850245000,-500.855209,8.392e-05,2]
[423101933,1779850245000,-402.66797508,8.395e-05,2]
[423101937,1779850245000,-500.0,8.395e-05,2]
[423101939,1779850245000,-6.78054064,8.395e-05,2]
[423101923,1779850245000,-500.0,8.392e-05,2]
[423102097,1779850246000,-500.0,8.395e-05,2]
[423102101,1779850246000,-317.82468763,8.395e-05,2]
[423102094,1779850246000,-493.21945936,8.395e-05,2]
[423102095,1779850246000,-500.0,8.395e-05,2]
[423102102,1779850246000,-156.03658662,8.395e-05,2]
[423102104,1779850246000,-200.22042626,8.395e-05,2]
[423102099,1779850246000,-247.97537543,8.395e-05,2]
[423102190,1779850247000,-500.0,8.496e-05,2]
[423102136,1779850247000,-482.42497173,8.496e-05,2]
[423102142,1779850247000,-503.12176126,8.496e-05,2]
[423102138,1779850247000,-500.0,8.496e-05,2]
[423102143,1779850247000,-502.70300397,8.496e-05,2]
[423102154,1779850247000,-501.61228547,8.496e-05,2]
[423102156,1779850247000,-501.29281242,8.496e-05,2]
[423102160,1779850247000,-502.86299582,8.496e-05,2]
[423102158,1779850247000,-500.0,8.496e-05,2]
[423102161,1779850247000,-500.0,8.496e-05,2]
[423102163,1779850247000,-500.0,8.496e-05,2]
[423102165,1779850247000,-501.6709038,8.496e-05,2]
[423102179,1779850247000,-503.65586356,8.496e-05,2]
[423102170,1779850247000,-500.0,8.496e-05,2]
[423102168,1779850247000,-502.68435913,8.496e-05,2]
[423102175,1779850247000,-500.0,8.496e-05,2]
[423102172,1779850247000,-501.67772575,8.496e-05,2]
[423102177,1779850247000,-500.0,8.496e-05,2]
[423102174,1779850247000,-543.25594112,8.496e-05,2]
[423102186,1779850247000,-501.65249101,8.496e-05,2]
[423102188,1779850247000,-502.69273503,8.496e-05,2]
[423102140,1779850247000,-500.0,8.496e-05,2]
[423102167,1779850247000,-558.8399715,8.496e-05,2]
[423102134,1779850247000,-500.0,8.496e-05,2]
[423102147,1779850247000,-502.10386506,8.496e-05,2]
[423102183,1779850247000,-502.90439485,8.496e-05,2]
[423102108,1779850247000,-500.0,8.395e-05,2]
[423102106,1779850247000,-295.40988447,8.395e-05,2]
[423102110,1779850247000,-4933.02106138,8.396e-05,2]
[423102111,1779850247000,-501.34436092,8.494e-05,2]
[423102113,1779850247000,-500.0,8.494e-05,2]
[423102125,1779850247000,-501.21944349,8.496e-05,2]
[423102127,1779850247000,-502.87645728,8.496e-05,2]
[423102115,1779850247000,-500.0,8.494e-05,2]
[423102123,1779850247000,-502.84377089,8.496e-05,2]
[423102137,1779850247000,-502.86581522,8.496e-05,2]
[423102129,1779850247000,-500.0,8.496e-05,2]
[423102117,1779850247000,-502.9392501,8.496e-05,2]
[423102119,1779850247000,-501.93058472,8.496e-05,2]
[423102131,1779850247000,-221.73963164,8.496e-05,2]
[423102132,1779850247000,-220.30622806,8.496e-05,2]
[423102133,1779850247000,-500.55859226,8.496e-05,2]
[423102145,1779850247000,-500.0,8.496e-05,2]
[423102149,1779850247000,-500.9842243,8.496e-05,2]
[423102153,1779850247000,-502.78332557,8.496e-05,2]
[423102151,1779850247000,-501.91989522,8.496e-05,2]
[423102135,1779850247000,-500.0,8.496e-05,2]
[423102121,1779850247000,-502.95980007,8.496e-05,2]
[423102195,1779850247000,-292.47104263,8.496e-05,2]
[423102219,1779850247000,-501.81451454,8.497e-05,2]
[423102198,1779850247000,-579.64644806,8.496e-05,2]
[423102256,1779850247000,-202.395,8.598e-05,2]
[423102246,1779850247000,-501.39003269,8.497e-05,2]
[423102236,1779850247000,-503.68767566,8.497e-05,2]
[423102258,1779850247000,-500.0,8.664e-05,2]
[423102250,1779850247000,-500.0,8.497e-05,2]
[423102254,1779850247000,-600.0,8.563e-05,2]
[423102260,1779850247000,-500.0,8.664e-05,2]
[423102271,1779850247000,-178.34025009,8.666e-05,2]
[423102275,1779850247000,-500.0,8.666e-05,2]
[423102273,1779850247000,-308.46795231,8.666e-05,2]
[423102277,1779850247000,-500.0,8.668e-05,2]
[423102266,1779850247000,-500.0,8.666e-05,2]
[423102268,1779850247000,-547.21,8.666e-05,2]
[423102262,1779850247000,-500.0,8.666e-05,2]
[423102264,1779850247000,-222.82019729,8.666e-05,2]
[423102283,1779850247000,-500.0,8.669e-05,2]
[423102281,1779850247000,-338.85029332,8.669e-05,2]
[423102285,1779850247000,-207.44002345,8.669e-05,2]
[423102279,1779850247000,-439.09683171,8.669e-05,2]
[423102292,1779850247000,-21650.35490221,8.7e-05,2]
[423102287,1779850247000,-373.29463693,8.669e-05,2]
[423102242,1779850247000,-503.34758483,8.497e-05,2]
[423102252,1779850247000,-152.0,8.503e-05,7]
[423102201,1779850247000,-642.6073695,8.496e-05,2]
[423102240,1779850247000,-502.25226965,8.497e-05,2]
[423102192,1779850247000,-307.17890038,8.496e-05,2]
[423102185,1779850247000,-502.31972061,8.496e-05,2]
[423102181,1779850247000,-593.94482997,8.496e-05,2]
[423102193,1779850247000,-502.33354656,8.496e-05,2]
[423102205,1779850247000,-501.17165467,8.496e-05,2]
[423102203,1779850247000,-502.79946246,8.496e-05,2]
[423102214,1779850247000,-501.33365307,8.497e-05,2]
[423102211,1779850247000,-500.97269763,8.496e-05,2]
[423102289,1779850247000,-500.0,8.669e-05,2]
[423102209,1779850247000,-500.70781419,8.496e-05,2]
[423102207,1779850247000,-643.07376436,8.496e-05,2]
[423102217,1779850247000,-502.79626218,8.497e-05,2]
[423102213,1779850247000,-1002.61942029,8.497e-05,2]
[423102238,1779850247000,-500.0,8.497e-05,2]
[423102232,1779850247000,-501.68082584,8.497e-05,2]
[423102228,1779850247000,-503.66473125,8.497e-05,2]
[423102226,1779850247000,-500.0,8.497e-05,2]
[423102244,1779850247000,-500.0,8.497e-05,2]
[423102234,1779850247000,-502.24241511,8.497e-05,2]
[423102222,1779850247000,-502.41800325,8.497e-05,2]
[423102220,1779850247000,-501.27490035,8.497e-05,2]
[423102224,1779850247000,-500.0,8.497e-05,2]
[423102248,1779850247000,-516.15386485,8.497e-05,2]
[423103043,1779850392000,150.0,0.000149,30]
[423103045,1779850590000,171.35978141,0.00013981,30]
[423103046,1779850591000,171.35978141,0.00014205,60]
[423103048,1779850593000,464.64594358,0.00014109,30]
[423103047,1779850593000,464.64594358,0.00014029,30]
[423103050,1779850594000,464.64594358,0.00014269,30]
[423103049,1779850594000,464.64594358,0.00014189,30]
[423103051,1779850595000,464.64594358,0.00014349,60]
[423103052,1779850595000,464.64594358,0.00014429,60]
[423103054,1779850597000,750.10368342,0.00013927,30]
[423103053,1779850597000,750.10368342,0.00013888,30]
[423103056,1779850598000,750.10368342,0.00014004,30]
[423103055,1779850598000,750.10368342,0.00013966,30]
[423103057,1779850599000,750.10368342,0.00014043,30]
[423103059,1779850600000,750.10368342,0.0001412,60]
[423103058,1779850600000,750.10368342,0.00014081,30]
[423103061,1779850601000,750.10368342,0.00014197,60]
[423103060,1779850601000,750.10368342,0.00014159,60]
[423103063,1779850602000,750.10368342,0.00014275,60]
[423103062,1779850602000,750.10368342,0.00014236,60]
[423103064,1779850603000,750.10368342,0.00014313,60]
[423103065,1779850603000,750.10368342,0.00014352,120]
[423103066,1779850604000,750.10368342,0.00014391,120]
[423103128,1779851432000,-3343.08908995,7.439e-05,2]
[423103126,1779851432000,-5000.0,7.365e-05,2]
[423103360,1779851441000,-500.0,7.438e-05,2]
[423103364,1779851441000,-500.0,7.438e-05,2]
[423103359,1779851441000,-500.0,7.438e-05,2]
[423103361,1779851441000,-500.0,7.438e-05,2]
[423103362,1779851441000,-492.68826206,7.438e-05,2]
[423103358,1779851441000,-500.0,7.438e-05,2]
[423103357,1779851441000,-500.0,7.438e-05,2]
[423103350,1779851441000,-500.0,7.438e-05,2]
[423103354,1779851441000,-500.0,7.438e-05,2]
[423103353,1779851441000,-466.75636586,7.438e-05,2]
[423103352,1779851441000,-500.0,7.438e-05,2]
[423103351,1779851441000,-500.0,7.438e-05,2]
[423103349,1779851441000,-347.65193714,7.438e-05,2]
[423103365,1779851441000,-500.0,7.438e-05,2]
[423103356,1779851441000,-500.0,7.438e-05,2]
[423103355,1779851441000,-500.0,7.438e-05,2]
[423103363,1779851441000,-500.0,7.438e-05,2]
[423103377,1779851441000,-1656.91091005,7.439e-05,2]
[423103366,1779851441000,-500.0,7.438e-05,2]
[423103376,1779851441000,-500.0,7.438e-05,2]
[423103374,1779851441000,-500.0,7.438e-05,2]
[423103372,1779851441000,-137.13057769,7.438e-05,2]
[423103373,1779851441000,-362.86942231,7.438e-05,2]
[423103371,1779851441000,-500.0,7.438e-05,2]
[423103375,1779851441000,-500.0,7.438e-05,2]
[423103381,1779851441000,-110.8060453,8.175e-05,2]
[423103369,1779851441000,-500.0,7.438e-05,2]
[423103379,1779851441000,-300.0,7.55e-05,2]
[423103378,1779851441000,-329.0,7.513e-05,2]
[423103367,1779851441000,-500.0,7.438e-05,2]
[423103380,1779851441000,-359.44303084,7.551e-05,2]
[423103370,1779851441000,-500.0,7.438e-05,2]
[423103368,1779851441000,-500.0,7.438e-05,2]
[423103397,1779851444000,-225.91968331,8.219e-05,2]
[423103396,1779851444000,-63.29244907,8.175e-05,2]
[423103438,1779851447000,-500.0,8.222e-05,2]
[423103436,1779851447000,-500.0,8.222e-05,2]
[423103433,1779851447000,-500.0,8.222e-05,2]
[423103427,1779851447000,-500.0,8.222e-05,2]
[423103431,1779851447000,-500.0,8.222e-05,2]
[423103430,1779851447000,-500.0,8.222e-05,2]
[423103448,1779851447000,-500.0,8.222e-05,2]
[423103432,1779851447000,-500.0,8.222e-05,2]
[423103447,1779851447000,-502.68059622,8.222e-05,2]
[423103444,1779851447000,-500.0,8.222e-05,2]
[423103437,1779851447000,-541.3030681,8.222e-05,2]
[423103439,1779851447000,-454.41900695,8.222e-05,2]
[423103441,1779851447000,-500.0,8.222e-05,2]
[423103443,1779851447000,-500.0,8.222e-05,2]
[423103442,1779851447000,-500.0,8.222e-05,2]
[423103445,1779851447000,-502.21217327,8.222e-05,2]
[423103428,1779851447000,-500.0,8.222e-05,2]
[423103440,1779851447000,-500.0,8.222e-05,2]
[423103446,1779851447000,-500.0,8.222e-05,2]
[423103449,1779851447000,-500.0,8.222e-05,2]
[423103429,1779851447000,-500.0,8.222e-05,2]
[423103419,1779851447000,-500.0,8.219e-05,2]
[423103425,1779851447000,-500.0,8.222e-05,2]
[423103407,1779851447000,-529.61932381,8.137e-05,2]
[423103408,1779851447000,-274.08031669,8.219e-05,2]
[423103409,1779851447000,-500.0,8.219e-05,2]
[423103412,1779851447000,-500.0,8.219e-05,2]
[423103413,1779851447000,-501.61,8.219e-05,2]
[423103411,1779851447000,-500.0,8.219e-05,2]
[423103415,1779851447000,-500.0,8.219e-05,2]
[423103420,1779851447000,-628.31081913,8.219e-05,2]
[423103418,1779851447000,-192.19616456,8.219e-05,2]
[423103416,1779851447000,-151.0,8.219e-05,2]
[423103421,1779851447000,-500.0,8.219e-05,2]
[423103410,1779851447000,-500.0,8.219e-05,2]
[423103414,1779851447000,-328.71674707,8.219e-05,2]
[423103417,1779851447000,-500.0,8.219e-05,2]
[423103422,1779851447000,-500.0,8.219e-05,2]
[423103424,1779851447000,-500.0,8.219e-05,2]
[423103434,1779851447000,-500.0,8.222e-05,2]
[423103435,1779851447000,-535.89,8.222e-05,2]
[423103423,1779851447000,-500.0,8.219e-05,2]
[423103426,1779851447000,-500.0,8.222e-05,2]
[423103450,1779851447000,-500.0,8.222e-05,2]
[423103463,1779851447000,-491.51100812,8.222e-05,2]
[423103452,1779851447000,-501.52352038,8.222e-05,2]
[423103484,1779851447000,-500.0,8.222e-05,2]
[423103485,1779851447000,-349.66288467,8.222e-05,2]
[423103491,1779851447000,-187.70351001,8.222e-05,2]
[423103483,1779851447000,-630.53693709,8.222e-05,2]
[423103487,1779851447000,-500.0,8.222e-05,2]
[423103489,1779851447000,-229.32412616,8.222e-05,2]
[423103488,1779851447000,-500.0,8.222e-05,2]
[423103490,1779851447000,-181.42835424,8.222e-05,2]
[423103486,1779851447000,-151.39062964,8.222e-05,2]
[423103492,1779851447000,-349.62258476,8.222e-05,2]
[423103494,1779851447000,-500.0,8.222e-05,2]
[423103493,1779851447000,-500.0,8.222e-05,2]
[423103495,1779851447000,-581.42719147,8.222e-05,2]
[423103496,1779851447000,-500.0,8.222e-05,2]
[423103497,1779851447000,-500.0,8.389e-05,2]
[423103498,1779851447000,-447.73226991,8.392e-05,2]
[423103499,1779851447000,-366.73371058,8.392e-05,2]
[423103500,1779851447000,-247.08396076,8.415e-05,2]
[423103462,1779851447000,-502.7521273,8.222e-05,2]
[423103482,1779851447000,-500.0,8.222e-05,2]
[423103479,1779851447000,-500.0,8.222e-05,2]
[423103470,1779851447000,-500.0,8.222e-05,2]
[423103455,1779851447000,-500.0,8.222e-05,2]
[423103453,1779851447000,-539.27831174,8.222e-05,2]
[423103454,1779851447000,-500.0,8.222e-05,2]
[423103451,1779851447000,-501.47286863,8.222e-05,2]
[423103458,1779851447000,-500.0,8.222e-05,2]
[423103456,1779851447000,-500.0,8.222e-05,2]
[423103460,1779851447000,-500.0,8.222e-05,2]
[423103457,1779851447000,-500.0,8.222e-05,2]
[423103459,1779851447000,-500.0,8.222e-05,2]
[423103461,1779851447000,-502.89562218,8.222e-05,2]
[423103477,1779851447000,-502.91810626,8.222e-05,2]
[423103474,1779851447000,-645.55,8.222e-05,2]
[423103475,1779851447000,-500.0,8.222e-05,2]
[423103478,1779851447000,-500.0,8.222e-05,2]
[423103476,1779851447000,-500.0,8.222e-05,2]
[423103466,1779851447000,-500.0,8.222e-05,2]
[423103472,1779851447000,-500.0,8.222e-05,2]
[423103481,1779851447000,-271.88007225,8.222e-05,2]
[423103480,1779851447000,-270.5962161,8.222e-05,2]
[423103468,1779851447000,-501.46762047,8.222e-05,2]
[423103464,1779851447000,-500.0,8.222e-05,2]
[423103521,1779852268000,-152.0,8.503e-05,7]
[423103567,1779852529000,-209.5222687,7.593e-05,2]
[423103566,1779852529000,-363.11417022,7.28e-05,2]
[423103565,1779852529000,-5000.0,7.207e-05,2]
[423103569,1779852548000,-1000.0,8.137e-05,2]
[423103570,1779852551000,-1000.0,8.137e-05,2]
[423103571,1779852551000,-1000.0,8.137e-05,2]
[423103578,1779852552000,-320.0,8.493e-05,2]
[423103575,1779852552000,-160.0,8.437e-05,2]
[423103577,1779852552000,-180.0,8.493e-05,2]
[423103576,1779852552000,-160.0,8.437e-05,2]
[423103574,1779852552000,-500.0,8.219e-05,2]
[423103573,1779852552000,-1000.0,8.137e-05,2]
[423103572,1779852552000,-1000.0,8.137e-05,2]
[423103579,1779852552000,-500.0,8.493e-05,2]
[423103581,1779852553000,-320.0,8.493e-05,2]
[423103580,1779852553000,-180.0,8.493e-05,2]
[423103583,1779852553000,-180.0,8.493e-05,2]
[423103585,1779852553000,-500.0,8.493e-05,2]
[423103586,1779852553000,-180.0,8.493e-05,2]
[423103582,1779852553000,-500.0,8.493e-05,2]
[423103584,1779852553000,-320.0,8.493e-05,2]
[423103596,1779852554000,-169.28957911,8.494e-05,2]
[423103588,1779852554000,-242.35559162,8.494e-05,2]
[423103587,1779852554000,-69.26882621,8.493e-05,2]
[423103591,1779852554000,-288.01113339,8.494e-05,2]
[423103589,1779852554000,-501.01671556,8.494e-05,2]
[423103593,1779852554000,-169.28957911,8.494e-05,2]
[423103595,1779852554000,-500.0,8.494e-05,2]
[423103594,1779852554000,-330.71042089,8.494e-05,2]
[423103592,1779852554000,-542.6992875,8.494e-05,2]
[423103590,1779852554000,-187.35886661,8.494e-05,2]
[423103598,1779852555000,-500.0,8.494e-05,2]
[423103600,1779852555000,-474.04042089,8.494e-05,2]
[423103602,1779852555000,-25.95957911,8.495e-05,2]
[423103601,1779852555000,-500.0,8.495e-05,2]
[423103597,1779852555000,-330.71042089,8.494e-05,2]
[423103599,1779852555000,-169.28957911,8.494e-05,2]
[423103603,1779852556000,-1000.0,8.137e-05,2]
[423103604,1779852568000,-1000.0,8.137e-05,2]
[423103606,1779852569000,-884.85398505,8.137e-05,2]
[423103605,1779852569000,-1000.0,8.137e-05,2]
[423103612,1779852570000,-503.00524962,8.495e-05,2]
[423103613,1779852570000,-181.32957221,8.495e-05,2]
[423103611,1779852570000,-315.66517817,8.495e-05,2]
[423103610,1779852570000,-185.89012426,8.495e-05,2]
[423103609,1779852570000,-455.2154698,8.495e-05,2]
[423103608,1779852570000,-358.89440594,8.495e-05,2]
[423103607,1779852570000,-115.14601495,8.495e-05,2]
[423103614,1779852571000,-325.88165174,8.495e-05,2]
[423103616,1779852571000,-172.64621885,8.495e-05,2]
[423103615,1779852571000,-501.47212941,8.495e-05,2]
[423103620,1779852572000,-335.38505046,8.495e-05,2]
[423103619,1779852572000,-167.76340134,8.495e-05,2]
[423103617,1779852572000,-331.15176023,8.495e-05,2]
[423103618,1779852572000,-501.08483843,8.495e-05,2]
[423103621,1779852573000,-501.47667332,8.495e-05,2]
[423103622,1779852573000,-163.13827622,8.495e-05,2]
[423103623,1779852574000,-338.70330636,8.495e-05,2]
[423103624,1779852574000,-501.54004828,8.495e-05,2]
[423103625,1779852574000,-159.75664536,8.495e-05,2]
[423103626,1779852575000,-478.48789829,8.495e-05,2]
[423103627,1779852575000,-502.9916427,8.495e-05,2]
[423103628,1779852575000,-18.52045901,8.495e-05,2]
[423103633,1779852577000,-570.82132437,8.495e-05,2]
[423103632,1779852577000,-239.99912135,8.495e-05,2]
[423103631,1779852577000,-262.24393619,8.495e-05,2]
[423103630,1779852577000,-254.33894,8.495e-05,2]
[423103629,1779852577000,-483.41712381,8.495e-05,2]
[423103634,1779852578000,-189.17955428,8.495e-05,2]
[423103635,1779852587000,-152.0,8.503e-05,7]
[423103636,1779852607000,-300.0,8.495e-05,2]
[423103700,1779852631000,-500.0,8.495e-05,2]
[423103698,1779852631000,-245.35328617,8.495e-05,2]
[423103696,1779852631000,-10.82044572,8.495e-05,2]
[423103709,1779852632000,-189.81757339,8.502e-05,2]
[423103711,1779852632000,-500.0,8.502e-05,2]
[423103713,1779852632000,-500.0,8.502e-05,2]
[423103715,1779852632000,-172.37184297,8.502e-05,2]
[423103704,1779852632000,-500.0,8.495e-05,2]
[423103708,1779852632000,-500.0,8.502e-05,2]
[423103706,1779852632000,-160.0,8.495e-05,2]
[423103702,1779852632000,-500.0,8.495e-05,2]
[423103925,1779852646000,-500.0,8.494e-05,2]
[423103926,1779852646000,-327.62815703,8.502e-05,2]
[423103928,1779852646000,-166.0,8.503e-05,2]
[423103929,1779852646000,-172.0,8.503e-05,2]
[423103930,1779852646000,-166.0,8.503e-05,2]
[423103931,1779852646000,-156.0,8.503e-05,2]
[423103933,1779852646000,-156.0,8.503e-05,2]
[423103927,1779852646000,-166.0,8.503e-05,2]
[423103932,1779852646000,-161.70297754,8.503e-05,2]
[423103938,1779852646000,-651.0,8.503e-05,2]
[423103937,1779852646000,-651.0,8.503e-05,2]
[423103936,1779852646000,-155.89852902,8.503e-05,2]
[423103940,1779852646000,-607.77033641,8.503e-05,2]
[423103939,1779852646000,-651.0,8.503e-05,2]
[423103934,1779852646000,-156.0,8.503e-05,2]
[423103935,1779852646000,-156.0,8.503e-05,2]
[423103945,1779852743000,157.0,0.00014645,30]
[423103953,1779852992000,164.933315,3.727e-05,2]
[423103958,1779853151000,-166.7546267,7.497e-05,2]
[423103959,1779853151000,-355.85188682,7.833e-05,2]
[423103956,1779853151000,-164.933315,5.59e-05,2]
[423103957,1779853151000,-164.933315,7.454e-05,2]
[423103954,1779853151000,-663.8763591,5.479e-05,2]
[423103955,1779853151000,-5000.0,5.534e-05,2]
[423103963,1779853449000,152.0,0.00014118,30]
[423103965,1779853470000,-4236.1236409,8.181e-05,2]
[423103964,1779853470000,-763.8763591,8.099e-05,2]
[423103966,1779853495000,-3837.0,8.099e-05,2]
[423103968,1779853507000,-663.8763591,8.181e-05,2]
[423103967,1779853507000,-1163.0,8.099e-05,2]
[423103969,1779853521000,173.1236409,8.2e-05,2]
[423103972,1779853627000,-500.0,7.767e-05,2]
[423103974,1779853627000,-248.00105527,7.767e-05,2]
[423103971,1779853627000,-300.0,7.766e-05,2]
[423103975,1779853627000,-500.0,7.767e-05,2]
[423103976,1779853627000,-500.0,7.767e-05,2]
[423103973,1779853627000,-500.0,7.767e-05,2]
[423103979,1779853628000,-500.0,7.767e-05,2]
[423103977,1779853628000,-500.0,7.767e-05,2]
[423103978,1779853628000,-500.0,7.767e-05,2]
[423103980,1779853628000,-500.0,7.767e-05,2]
[423103981,1779853628000,-500.0,7.767e-05,2]
[423103987,1779853628000,-1011.11402491,7.768e-05,2]
[423103983,1779853628000,-500.0,7.767e-05,2]
[423103984,1779853628000,-500.0,7.767e-05,2]
[423103985,1779853628000,-205.75388171,7.767e-05,2]
[423103986,1779853628000,-373.48923014,7.768e-05,2]
[423103982,1779853628000,-423.64180797,7.767e-05,2]
[423103990,1779853660000,-616.72147849,7.768e-05,2]
[423103989,1779853660000,-889.34400039,7.768e-05,2]
[423103988,1779853660000,-3493.93452112,7.69e-05,2]
[423103991,1779853661000,-5000.0,7.768e-05,2]
[423103992,1779853662000,-5000.0,7.768e-05,2]
[423103993,1779853663000,-5000.0,7.768e-05,2]
[423103995,1779853664000,-5000.0,7.768e-05,2]
[423103994,1779853664000,-5000.0,7.768e-05,2]
[423103997,1779853694000,-300.0,7.767e-05,2]
[423103998,1779853694000,-4700.0,7.768e-05,2]
[423103999,1779853695000,-5000.0,7.768e-05,2]
[423104000,1779853696000,-5000.0,7.768e-05,2]
[423104001,1779853697000,-5000.0,7.768e-05,2]
[423104002,1779853701000,-5000.0,7.768e-05,2]
[423104003,1779853702000,-5000.0,7.768e-05,2]
[423104004,1779853703000,-5000.0,7.768e-05,2]
[423104005,1779853704000,-5000.0,7.768e-05,2]
[423104006,1779853705000,-5000.0,7.768e-05,2]
[423104007,1779853706000,-5000.0,7.768e-05,2]
[423104008,1779853710000,-2230.80780111,7.768e-05,2]
[423104011,1779853710000,-300.0,7.921e-05,2]